[Event "FRA-ch Youth U14W 2019"]
[Site "Hyeres"]
[Date "2019.04.15"]
[Round "2.3"]
[White "Stephan, Margaux"]
[Black "Cornileau, Juliette"]
[Result "0-1"]
[ECO "D37"]
[WhiteElo "1379"]
[BlackElo "1705"]
[Annotator "NA RC"]
[PlyCount "51"]
[EventDate "2019.04.14"]
[EventType "swiss"]
[EventCountry "FRA"]
[SourceTitle "playchess.com"]
[Source "ChessBase"]
[SourceQuality "1"]
[TimeControl "5400+30"]

1. d4 {[%emt 0:00:00]} d5 {[%emt 0:00:00]} 2. c4 {[%emt 0:00:00]} c6 {[%emt 0:00:00]} 3. Nf3 {[%emt 0:00:01]} e6 {[%emt 0:00:02]} 4. Nc3 {[%emt 0:00:53]} Nd7 {[%emt 0:02:25]} 5. Bf4 {[%emt 0:07:57]} Ngf6 {[%emt 0:00:46]} 6. e3 {[%emt 0:00:38]} Be7 {[%emt 0:03:39]} 7. Qc2 {[%emt 0:02:14]} O-O {[%emt 0:13:11]} 8. Be2 {[%emt 0:10:26]} dxc4 {[%emt 0:01:39]} 9. Bxc4 {[%emt 0:01:50]} b5 {[%emt 0:00:31]} 10. Bd3 {[%emt 0:04:52]} Bb7 {[%emt 0:02:12]} 11. O-O {[%emt 0:10:39]} a6 {[%emt 0:06:00]} 12. Ne2 {[%emt 0:04:21]} Rc8 {[%emt 0:10:22]} 13. Qd1 {[%emt 0:01:26]} Qb6 {[%emt 0:02:43]} 14. Rc1 {[%emt 0:04:53]} Rfd8 {[%emt 0:07:00]} 15. Bg3 {[%emt 0:10:06]} c5 {[%emt 0:09:24]} 16. Nd2 {[%emt 0:16:41]} Nh5 {[%emt 0:16:31]} 17. Bb1 {[%emt 0:11:46]} Nxg3 {[%emt 0:01:01]} 18. hxg3 {[%emt 0:00:55]} Bf6 {[%emt 0:02:18]} 19. dxc5 {[%emt 0:01:50]} Nxc5 {[%emt 0:00:45]} 20. Rc2 {[%emt 0:01:27]} Be4 {[%emt 0:16:11]} 21. Rxc5 {[%emt 0:03:15]} Rxc5 {[%emt 0:00:36]} 22. Bxe4 {[%emt 0:00:18]} Qd6 {[%emt 0:00:20]} 23. b4 {[%emt 0:03:53]} Rcc8 {[%emt 0:00:46]} 24. Bb7 {[%emt 0:00:58]} Rb8 {[%emt 0:00:17]} 25. Bf3 {[%emt 0:00:33]} Qxd2 {[%emt 0:00:09]} 26. Qb1 {[%emt 0:01:08]} 0-1

[Event "FRA-ch Youth U14W 2019"]
[Site "Hyeres"]
[Date "2019.04.15"]
[Round "2.4"]
[White "Bellahcene, Sofia"]
[Black "Boero, Angele"]
[Result "1/2-1/2"]
[ECO "B01"]
[WhiteElo "1673"]
[BlackElo "1399"]
[Annotator "NA RC"]
[PlyCount "84"]
[EventDate "2019.04.14"]
[EventType "swiss"]
[EventCountry "FRA"]
[SourceTitle "playchess.com"]
[Source "ChessBase"]
[SourceQuality "1"]
[TimeControl "5400+30"]

1. e4 {[%emt 0:00:00]} d5 {[%emt 0:00:00]} 2. exd5 {[%emt 0:00:30]} Nf6 {[%emt 0:00:00]} 3. Bb5+ {[%emt 0:00:41]} Bd7 {[%emt 0:00:51]} 4. Be2 {[%emt 0:01:05]} Nxd5 {[%emt 0:01:22]} 5. Nf3 {[%emt 0:01:21]} Nc6 {[%emt 0:02:24]} 6. O-O {[%emt 0:03:28]} Bg4 {[%emt 0:03:02]} 7. d4 {[%emt 0:02:33]} e6 {[%emt 0:01:47]} 8. a3 {[%emt 0:04:04]} Be7 {[%emt 0:01:29]} 9. h3 {[%emt 0:03:23]} Bh5 {[%emt 0:01:25]} 10. Bb5 {[%emt 0:01:51]} Qd6 {[%emt 0:03:06]} 11. c4 {[%emt 0:01:34]} Nf6 {[%emt 0:01:20]} 12. g4 {[%emt 0:03:24]} Bg6 {[%emt 0:06:07]} 13. c5 {[%emt 0:01:42]} Qd8 {[%emt 0:07:29]} 14. Ne5 {[%emt 0:00:58]} Be4 {[%emt 0:05:09]} 15. Nc3 {[%emt 0:02:28]} Bd5 {[%emt 0:01:04]} 16. Nxd5 {[%emt 0:02:07]} Qxd5 {[%emt 0:00:52]} 17. Qa4 {[%emt 0:01:36]} O-O {[%emt 0:01:51]} 18. Nxc6 {[%emt 0:03:45]} bxc6 {[%emt 0:05:10]} 19. Bxc6 {[%emt 0:00:46]} Qd8 {[%emt 0:00:49]} 20. Bxa8 {[%emt 0:01:39]} Qxa8 {[%emt 0:00:17]} 21. f3 {[%emt 0:05:08]} Rd8 {[%emt 0:01:36]} 22. Bd2 {[%emt 0:08:05]} Bxc5 {[%emt 0:02:02]} 23. dxc5 {[%emt 0:06:41]} Rxd2 {[%emt 0:00:54]} 24. Rad1 {[%emt 0:01:27]} Rxb2 {[%emt 0:03:07]} 25. Qxa7 {[%emt 0:00:59]} Qc8 {[%emt 0:03:11]} 26. Rb1 {[%emt 0:01:50]} Rxb1 {[%emt 0:03:11]} 27. Rxb1 {[%emt 0:00:55]} Qd7 {[%emt 0:01:03]} 28. Rb8+ {[%emt 0:02:30]} Ne8 {[%emt 0:00:33]} 29. Rxe8+ {[%emt 0:03:05]} Qxe8 {[%emt 0:00:22]} 30. Qxc7 {[%emt 0:00:05]} h6 {[%emt 0:00:17]} 31. c6 {[%emt 0:00:54]} Qa8 {[%emt 0:01:05]} 32. h4 {[%emt 0:13:38]} Qxa3 {[%emt 0:02:56]} 33. Qb8+ {[%emt 0:00:42]} Kh7 {[%emt 0:00:39]} 34. c7 {[%emt 0:00:10]} Qe3+ {[%emt 0:00:31]} 35. Kg2 {[%emt 0:00:47]} Qe2+ {[%emt 0:03:13]} 36. Kg3 {[%emt 0:00:20]} Qe1+ {[%emt 0:00:35]} 37. Kh3 {[%emt 0:02:27]} Qh1+ {[%emt 0:03:56]} 38. Kg3 {[%emt 0:00:21]} Qe1+ {[%emt 0:00:20]} 39. Kg2 {[%emt 0:00:17]} Qe2+ {[%emt 0:00:28]} 40. Kg1 {[%emt 0:01:42]} Qe1+ {[%emt 0:00:24]} 41. Kh2 {[%emt 0:07:40]} Qf2+ {[%emt 0:00:43]} 42. Kh1 {[%emt 0:00:37]} Qf1+ {[%emt 0:00:22]} 1/2-1/2

[Event "FRA-ch Youth U14W 2019"]
[Site "Hyeres"]
[Date "2019.04.15"]
[Round "3.1"]
[White "Sumarriva Paulin, Laura"]
[Black "Lordier, Sophia"]
[Result "1/2-1/2"]
[ECO "D55"]
[WhiteElo "1922"]
[BlackElo "1553"]
[Annotator "NA"]
[PlyCount "110"]
[EventDate "2019.04.14"]
[EventType "swiss"]
[EventCountry "FRA"]
[SourceTitle "playchess.com"]
[Source "ChessBase"]
[SourceQuality "1"]
[TimeControl "5400+30"]

1. d4 {[%emt 0:00:00]} d5 {[%emt 0:07:56]} 2. c4 {[%emt 0:00:00]} e6 {[%emt 0:00:07]} 3. Nc3 {[%emt 0:00:00]} Nf6 {[%emt 0:00:06]} 4. cxd5 {[%emt 0:00:02]} exd5 {[%emt 0:00:04]} 5. Bg5 {[%emt 0:00:13]} Be7 {[%emt 0:00:32]} 6. e3 {[%emt 0:00:08]} O-O {[%emt 0:01:00]} 7. Bd3 {[%emt 0:00:14]} Nbd7 {[%emt 0:00:53]} 8. Nf3 {[%emt 0:01:53]} b6 {[%emt 0:02:17]} 9. O-O {[%emt 0:01:01]} Bb7 {[%emt 0:00:40]} 10. Rc1 {[%emt 0:01:53]} a6 {[%emt 0:03:05]} 11. Qc2 {[%emt 0:15:03]} c5 {[%emt 0:09:22]} 12. Bf5 {[%emt 0:15:46]} h6 {[%emt 0:06:12]} 13. Bh4 {[%emt 0:00:46]} Re8 $14 {[%emt 0:05:38]} 14. Na4 {[%emt 0:12:04]} cxd4 {[%emt 0:04:33]} 15. Nxd4 {[%emt 0:01:14]} Rc8 {[%emt 0:00:16]} 16. Qb3 {[%emt 0:10:25]} b5 {[%emt 0:07:46]} 17. Bxf6 {[%emt 0:04:17]} Rxc1 {[%emt 0:02:18]} 18. Rxc1 {[%emt 0:01:42]} Nxf6 {[%emt 0:00:28]} 19. Nc5 {[%emt 0:02:29]} Bxc5 {[%emt 0:00:57]} 20. Rxc5 {[%emt 0:01:08]} g6 {[%emt 0:03:47]} 21. Bh3 {[%emt 0:04:40]} Ne4 {[%emt 0:01:42]} 22. Rc1 {[%emt 0:02:15]} Ng5 {[%emt 0:04:20]} 23. Bg4 {[%emt 0:02:30]} h5 {[%emt 0:03:32]} 24. Bf3 {[%emt 0:05:19]} Nxf3+ {[%emt 0:05:05]} 25. Nxf3 {[%emt 0:00:06]} Qb6 {[%emt 0:02:52]} 26. h3 {[%emt 0:02:57]} Re7 {[%emt 0:04:10]} 27. Qc3 {[%emt 0:02:01]} Re8 {[%emt 0:03:06]} 28. Qd2 {[%emt 0:03:22]} Qf6 {[%emt 0:02:08]} 29. Rc7 {[%emt 0:02:48]} Re7 {[%emt 0:00:16]} 30. Rc5 {[%emt 0:00:33]} Qf5 {[%emt 0:01:49]} 31. Qc1 {[%emt 0:00:44]} Qd7 {[%emt 0:00:52]} 32. Nd4 {[%emt 0:00:33]} Qd6 {[%emt 0:02:08]} 33. b4 {[%emt 0:01:00]} Qb6 {[%emt 0:01:42]} 34. a3 {[%emt 0:01:22]} Rd7 {[%emt 0:01:04]} 35. Qc3 {[%emt 0:00:31]} Re7 {[%emt 0:00:41]} 36. Nc6 {[%emt 0:01:05]} Bxc6 {[%emt 0:14:36]} 37. Rxc6 {[%emt 0:00:13]} d4 {[%emt 0:00:00]} 38. exd4 {[%emt 0:01:01]} Qa7 {[%emt 0:00:00]} 39. d5 {[%emt 0:00:32]} Re8 {[%emt 0:00:00]} 40. Rc8 {[%emt 0:06:10]} Qd7 {[%emt 0:00:00]} 41. Rxe8+ {[%emt 0:00:00]} Qxe8 {[%emt 0:00:00]} 42. d6 {[%emt 0:00:00]} Qe6 {[%emt 0:00:00]} 43. Qc7 {[%emt 0:00:00]} Qe1+ {[%emt 0:00:00]} 44. Kh2 {[%emt 0:00:00]} Qe5+ {[%emt 0:00:00]} 45. g3 {[%emt 0:00:00]} Qf5 {[%emt 0:00:00]} 46. Qc5 {[%emt 0:00:34]} Qd3 {[%emt 0:00:00]} 47. Qc8+ {[%emt 0:01:06]} Kg7 {[%emt 0:00:00]} 48. d7 {[%emt 0:01:24]} Qd2 {[%emt 0:00:00]} 49. Kg1 {[%emt 0:00:41]} Qd1+ {[%emt 0:00:00]} 50. Kh2 {[%emt 0:00:07]} Qd2 {[%emt 0:00:00]} 51. Kg2 {[%emt 0:00:29]} Qd5+ {[%emt 0:00:00]} 52. Kf1 {[%emt 0:00:28]} Qd1+ {[%emt 0:00:00]} 53. Kg2 {[%emt 0:00:08]} Qd5+ {[%emt 0:00:00]} 54. Kh2 {[%emt 0:00:06]} Qd2 {[%emt 0:00:00]} 55. Kg1 {[%emt 0:01:49]} Qd1+ {[%emt 0:09:30]} 1/2-1/2

[Event "FRA-ch Youth U14W 2019"]
[Site "Hyeres"]
[Date "2019.04.15"]
[Round "3.2"]
[White "Englisch, Caroline"]
[Black "Nguyen, Thao Nhi"]
[Result "0-1"]
[ECO "E17"]
[WhiteElo "1535"]
[BlackElo "1803"]
[Annotator "NA RC"]
[PlyCount "26"]
[EventDate "2019.04.14"]
[EventType "swiss"]
[EventCountry "FRA"]
[SourceTitle "playchess.com"]
[Source "ChessBase"]
[SourceQuality "1"]
[TimeControl "5400+30"]

1. d4 {[%emt 0:00:00]} Nf6 {[%emt 0:00:00]} 2. Nf3 {[%emt 0:00:00]} c5 {[%emt 0:00:00]} 3. g3 {[%emt 0:00:21]} b6 {[%emt 0:01:04]} 4. Bg2 {[%emt 0:01:44]} Bb7 {[%emt 0:00:13]} 5. O-O {[%emt 0:01:18]} e6 {[%emt 0:04:10]} 6. c4 {[%emt 0:03:05]} cxd4 {[%emt 0:09:46]} 7. Nxd4 {[%emt 0:01:13]} Bxg2 {[%emt 0:02:50]} 8. Kxg2 {[%emt 0:00:12]} Be7 {[%emt 0:02:47]} 9. Nc3 {[%emt 0:05:42]} O-O {[%emt 0:03:40]} 10. Qc2 {[%emt 0:05:59]} Qc8 {[%emt 0:05:04]} 11. b3 {[%emt 0:05:40]} Nc6 {[%emt 0:03:13]} 12. Ncb5 {[%emt 0:06:27]} a6 {[%emt 0:01:35]} 13. Nxc6 {[%emt 0:06:45]} Qxc6+ {[%emt 0:00:13]} 0-1

[Event "FRA-ch Youth U14W 2019"]
[Site "Hyeres"]
[Date "2019.04.15"]
[Round "3.3"]
[White "Cornileau, Juliette"]
[Black "Diez, Agathe"]
[Result "1-0"]
[ECO "C47"]
[WhiteElo "1705"]
[BlackElo "1516"]
[Annotator "NA"]
[PlyCount "71"]
[EventDate "2019.04.14"]
[EventType "swiss"]
[EventCountry "FRA"]
[SourceTitle "playchess.com"]
[Source "ChessBase"]
[SourceQuality "1"]
[TimeControl "5400+30"]

1. e4 {[%emt 0:00:00]} e5 {[%emt 0:00:00]} 2. Nf3 {[%emt 0:00:00]} Nc6 {[%emt 0:00:00]} 3. Nc3 {[%emt 0:00:00]} Nf6 {[%emt 0:00:02]} 4. d4 {[%emt 0:00:00]} exd4 {[%emt 0:00:13]} 5. Nxd4 {[%emt 0:00:02]} Bb4 {[%emt 0:00:15]} 6. Nxc6 {[%emt 0:00:18]} bxc6 {[%emt 0:00:13]} 7. Bd3 {[%emt 0:00:08]} d5 {[%emt 0:00:27]} 8. exd5 {[%emt 0:00:33]} cxd5 {[%emt 0:00:26]} 9. O-O {[%emt 0:00:16]} O-O {[%emt 0:00:18]} 10. Bg5 {[%emt 0:01:30]} c6 {[%emt 0:00:37]} 11. h3 {[%emt 0:05:41]} Be6 {[%emt 0:00:59]} 12. Qf3 {[%emt 0:01:59]} Be7 {[%emt 0:00:31]} 13. Rad1 {[%emt 0:05:11]} h6 {[%emt 0:01:03]} 14. Bf4 {[%emt 0:02:14]} Bd6 {[%emt 0:02:51]} 15. Ne2 {[%emt 0:01:39]} c5 {[%emt 0:03:41]} 16. Bxd6 {[%emt 0:03:25]} Qxd6 {[%emt 0:00:35]} 17. Nf4 {[%emt 0:08:39]} Bd7 {[%emt 0:21:28]} 18. c3 {[%emt 0:12:02]} Bc6 {[%emt 0:03:16]} 19. Qg3 {[%emt 0:02:30]} Rad8 {[%emt 0:03:35]} 20. Rfe1 {[%emt 0:04:22]} Ba8 {[%emt 0:10:35]} 21. Bb1 {[%emt 0:06:59]} Qb6 {[%emt 0:04:15]} 22. b3 {[%emt 0:05:14]} Rfe8 {[%emt 0:01:28]} 23. Qd3 {[%emt 0:13:18]} Ne4 {[%emt 0:07:14]} 24. c4 {[%emt 0:14:56]} d4 {[%emt 0:06:12]} 25. f3 {[%emt 0:06:13]} Nf6 {[%emt 0:02:21]} 26. Qf5 {[%emt 0:04:32]} g6 {[%emt 0:02:30]} 27. Qd3 {[%emt 0:01:06]} Kg7 {[%emt 0:01:03]} 28. Kf2 {[%emt 0:00:40]} Qb4 {[%emt 0:01:21]} 29. Rc1 {[%emt 0:00:32]} g5 {[%emt 0:08:18]} 30. Nh5+ {[%emt 0:00:27]} Kf8 {[%emt 0:06:04]} 31. Nxf6 {[%emt 0:00:06]} Re3 {[%emt 0:00:31]} 32. Rxe3 {[%emt 0:00:50]} dxe3+ {[%emt 0:00:06]} 33. Qxe3 {[%emt 0:00:07]} Rd2+ {[%emt 0:00:36]} 34. Kf1 {[%emt 0:00:50]} Kg7 {[%emt 0:02:04]} 35. Nh5+ {[%emt 0:00:31]} Kf8 {[%emt 0:00:21]} 36. Re1 {[%emt 0:00:15]} 1-0

[Event "FRA-ch Youth U14W 2019"]
[Site "Hyeres"]
[Date "2019.04.15"]
[Round "3.4"]
[White "Marcellier, Lucie"]
[Black "Milojevic-Daim, Lola-Shaina"]
[Result "0-1"]
[ECO "A48"]
[WhiteElo "1646"]
[BlackElo "1486"]
[Annotator "NA"]
[PlyCount "58"]
[EventDate "2019.04.14"]
[EventType "swiss"]
[EventCountry "FRA"]
[SourceTitle "playchess.com"]
[Source "ChessBase"]
[SourceQuality "1"]
[TimeControl "5400+30"]

1. d4 {[%emt 0:00:00]} Nf6 {[%emt 0:00:00]} 2. Nf3 {[%emt 0:00:00]} g6 {[%emt 0:00:00]} 3. Bf4 {[%emt 0:00:00]} Bg7 {[%emt 0:00:28]} 4. e3 {[%emt 0:00:00]} d6 {[%emt 0:00:25]} 5. h3 {[%emt 0:00:00]} O-O {[%emt 0:00:13]} 6. Be2 {[%emt 0:00:00]} Nc6 {[%emt 0:01:56]} 7. O-O {[%emt 0:00:18]} Nd7 {[%emt 0:01:14]} 8. c4 {[%emt 0:01:46]} e5 {[%emt 0:01:25]} 9. Bh2 {[%emt 0:01:11]} f5 {[%emt 0:03:27]} 10. Nc3 {[%emt 0:04:13]} h6 {[%emt 0:06:45]} 11. d5 {[%emt 0:08:34]} Ne7 {[%emt 0:00:29]} 12. Rc1 {[%emt 0:05:15]} Nf6 {[%emt 0:05:11]} 13. Qb3 {[%emt 0:03:18]} g5 {[%emt 0:06:03]} 14. c5 {[%emt 0:05:43]} Ng6 {[%emt 0:05:44]} 15. cxd6 {[%emt 0:08:32]} cxd6 {[%emt 0:03:19]} 16. Nd2 {[%emt 0:03:22]} g4 {[%emt 0:09:21]} 17. Nb5 {[%emt 0:20:24]} Rf7 {[%emt 0:06:05]} 18. Nc4 {[%emt 0:03:44]} Bf8 {[%emt 0:04:25]} 19. Rfd1 {[%emt 0:04:55]} gxh3 {[%emt 0:08:49]} 20. gxh3 {[%emt 0:00:28]} Ne4 {[%emt 0:00:43]} 21. Bg3 {[%emt 0:20:19]} f4 {[%emt 0:04:36]} 22. exf4 {[%emt 0:00:36]} exf4 {[%emt 0:00:13]} 23. Bh2 {[%emt 0:01:26]} Qg5+ {[%emt 0:02:24]} 24. Kf1 {[%emt 0:00:42]} Nh4 {[%emt 0:02:02]} 25. Bf3 {[%emt 0:04:54]} Ng3+ {[%emt 0:09:33]} 26. Ke1 {[%emt 0:02:47]} Re7+ {[%emt 0:04:34]} 27. Kd2 {[%emt 0:00:26]} Nxf3+ {[%emt 0:02:03]} 28. Qxf3 {[%emt 0:00:29]} Re2+ {[%emt 0:00:35]} 29. Kc3 {[%emt 0:00:32]} Ne4+ {[%emt 0:02:01]} 0-1

[Event "FRA-ch Youth U14W 2019"]
[Site "Hyeres"]
[Date "2019.04.16"]
[Round "4.4"]
[White "Milojevic-Daim, Lola-Shaina"]
[Black "Sumarriva Paulin, Laura"]
[Result "1-0"]
[ECO "C00"]
[WhiteElo "1486"]
[BlackElo "1922"]
[Annotator "NA"]
[PlyCount "67"]
[EventDate "2019.04.14"]
[EventType "swiss"]
[EventCountry "FRA"]
[SourceTitle "playchess.com"]
[Source "ChessBase"]
[SourceQuality "1"]
[TimeControl "5400+30"]

1. e4 {[%emt 0:00:00]} e6 {[%emt 0:00:00]} 2. d3 {[%emt 0:00:00]} d5 {[%emt 0:00:00]} 3. Nd2 {[%emt 0:00:00]} Nf6 {[%emt 0:00:07]} 4. g3 {[%emt 0:00:27]} c5 {[%emt 0:00:39]} 5. Bg2 {[%emt 0:00:25]} Nc6 {[%emt 0:00:25]} 6. Nh3 {[%emt 0:00:24]} Be7 {[%emt 0:02:36]} 7. O-O {[%emt 0:00:48]} O-O {[%emt 0:01:07]} 8. f4 {[%emt 0:01:19]} b5 {[%emt 0:11:25]} 9. e5 {[%emt 0:04:50]} Nd7 {[%emt 0:01:32]} 10. c3 {[%emt 0:04:23]} b4 {[%emt 0:09:01]} 11. Nf3 {[%emt 0:05:16]} Nb6 {[%emt 0:11:54]} 12. Nf2 {[%emt 0:08:18]} Rb8 {[%emt 0:11:01]} 13. g4 {[%emt 0:11:23]} a5 {[%emt 0:03:57]} 14. Bh3 {[%emt 0:09:41]} bxc3 {[%emt 0:06:43]} 15. bxc3 {[%emt 0:01:43]} f6 {[%emt 0:02:12]} 16. exf6 {[%emt 0:10:13]} Bxf6 {[%emt 0:00:25]} 17. Bd2 {[%emt 0:00:50]} Qd6 {[%emt 0:10:47]} 18. g5 {[%emt 0:10:10]} Bd8 {[%emt 0:00:59]} 19. Ng4 {[%emt 0:04:50]} Nd7 {[%emt 0:05:13]} 20. Qe2 {[%emt 0:04:34]} Bc7 {[%emt 0:06:53]} 21. Rab1 {[%emt 0:08:01]} e5 {[%emt 0:04:28]} 22. Rxb8 {[%emt 0:01:43]} Bxb8 {[%emt 0:00:19]} 23. Ngxe5 {[%emt 0:01:57]} Ndxe5 {[%emt 0:01:40]} 24. fxe5 {[%emt 0:00:20]} Nxe5 {[%emt 0:00:29]} 25. Bxc8 {[%emt 0:02:59]} Nxf3+ {[%emt 0:06:17]} 26. Rxf3 {[%emt 0:00:11]} Qxh2+ {[%emt 0:01:18]} 27. Qxh2 {[%emt 0:01:07]} Bxh2+ {[%emt 0:00:04]} 28. Kg2 {[%emt 0:00:13]} Rxf3 {[%emt 0:01:05]} 29. Kxf3 {[%emt 0:00:11]} Kf7 {[%emt 0:00:11]} 30. Kg4 {[%emt 0:00:38]} Bc7 {[%emt 0:01:02]} 31. a4 {[%emt 0:02:31]} g6 {[%emt 0:00:48]} 32. c4 {[%emt 0:01:53]} d4 {[%emt 0:00:40]} 33. Kf3 {[%emt 0:00:18]} Ke7 {[%emt 0:00:21]} 34. Ke4 {[%emt 0:01:30]} 1-0

[Event "FRA-ch Youth U14W 2019"]
[Site "Hyeres"]
[Date "2019.04.17"]
[Round "5.1"]
[White "Milojevic-Daim, Lola-Shaina"]
[Black "Nguyen, Thao Nhi"]
[Result "0-1"]
[ECO "B03"]
[WhiteElo "1486"]
[BlackElo "1803"]
[Annotator "NA RC"]
[PlyCount "86"]
[EventDate "2019.04.14"]
[EventType "swiss"]
[EventCountry "FRA"]
[SourceTitle "playchess.com"]
[Source "ChessBase"]
[SourceQuality "1"]
[TimeControl "5400+30"]

1. e4 {[%emt 0:00:00]} Nf6 {[%emt 0:00:00]} 2. e5 {[%emt 0:00:00]} Nd5 {[%emt 0:00:00]} 3. d4 {[%emt 0:00:00]} d6 {[%emt 0:00:00]} 4. c4 {[%emt 0:00:03]} Nb6 {[%emt 0:00:00]} 5. exd6 {[%emt 0:00:25]} exd6 {[%emt 0:00:27]} 6. Bd3 {[%emt 0:02:26]} Nc6 {[%emt 0:02:38]} 7. Ne2 {[%emt 0:02:04]} Be7 {[%emt 0:02:30]} 8. Nbc3 {[%emt 0:01:56]} O-O {[%emt 0:13:31]} 9. b3 {[%emt 0:07:37]} Bf6 {[%emt 0:05:47]} 10. O-O {[%emt 0:02:30]} Bg4 {[%emt 0:06:03]} 11. f3 {[%emt 0:14:43]} Bh5 {[%emt 0:03:54]} 12. Bb2 {[%emt 0:06:49]} d5 {[%emt 0:04:04]} 13. c5 {[%emt 0:05:46]} Nc8 {[%emt 0:00:38]} 14. Bb1 {[%emt 0:03:26]} N8e7 {[%emt 0:04:45]} 15. Kh1 {[%emt 0:07:31]} Bg6 {[%emt 0:00:52]} 16. Bxg6 {[%emt 0:01:44]} hxg6 {[%emt 0:00:26]} 17. g4 {[%emt 0:02:08]} g5 {[%emt 0:02:43]} 18. Qd2 {[%emt 0:05:24]} Ng6 {[%emt 0:02:11]} 19. Nd1 {[%emt 0:01:52]} Re8 {[%emt 0:01:49]} 20. Nf2 {[%emt 0:02:10]} Re6 {[%emt 0:05:40]} 21. Rae1 {[%emt 0:02:40]} Qe7 {[%emt 0:06:10]} 22. Ng3 {[%emt 0:03:05]} Nh4 {[%emt 0:08:01]} 23. Nf5 {[%emt 0:02:58]} Nxf5 {[%emt 0:01:08]} 24. gxf5 {[%emt 0:00:03]} Rxe1 {[%emt 0:00:11]} 25. Rxe1 {[%emt 0:00:14]} Qd7 {[%emt 0:00:57]} 26. Qd3 {[%emt 0:02:03]} b6 {[%emt 0:08:55]} 27. Ng4 {[%emt 0:03:56]} Be7 {[%emt 0:01:36]} 28. Ne3 {[%emt 0:09:55]} Re8 {[%emt 0:04:46]} 29. cxb6 {[%emt 0:02:23]} axb6 {[%emt 0:14:48]} 30. Qb5 {[%emt 0:00:16]} Bf6 {[%emt 0:00:00]} 31. Bc3 {[%emt 0:01:12]} Rd8 {[%emt 0:00:00]} 32. Qd3 {[%emt 0:01:54]} Qd6 {[%emt 0:00:00]} 33. Ng4 {[%emt 0:01:05]} Be7 {[%emt 0:00:00]} 34. Ne5 {[%emt 0:01:38]} Bf8 {[%emt 0:00:00]} 35. Bd2 {[%emt 0:01:20]} Nb4 {[%emt 0:00:00]} 36. Qb5 {[%emt 0:01:38]} Nc2 {[%emt 0:00:00]} 37. Nc6 {[%emt 0:01:13]} Nxe1 {[%emt 0:00:00]} 38. Nxd8 {[%emt 0:00:02]} Nxf3 {[%emt 0:00:00]} 39. Qe2 {[%emt 0:00:46]} Nxd2 {[%emt 0:00:00]} 40. Nxf7 {[%emt 0:00:27]} Kxf7 {[%emt 0:00:00]} 41. Qxd2 {[%emt 0:00:26]} Qf4 {[%emt 0:00:00]} 42. Qxf4 {[%emt 0:00:31]} gxf4 {[%emt 0:00:00]} 43. Kg2 {[%emt 0:00:06]} Kf6 {[%emt 0:00:00]} 0-1

[Event "FRA-ch Youth U14W 2019"]
[Site "Hyeres"]
[Date "2019.04.17"]
[Round "5.2"]
[White "Cornileau, Juliette"]
[Black "Kuhn, Mathilde"]
[Result "1-0"]
[ECO "A48"]
[WhiteElo "1705"]
[BlackElo "1608"]
[Annotator "NA RC"]
[PlyCount "137"]
[EventDate "2019.04.14"]
[EventType "swiss"]
[EventCountry "FRA"]
[SourceTitle "playchess.com"]
[Source "ChessBase"]
[SourceQuality "1"]
[TimeControl "5400+30"]

1. d4 {[%emt 0:00:00]} Nf6 {[%emt 0:00:00]} 2. Nf3 {[%emt 0:00:00]} g6 {[%emt 0:00:00]} 3. Bg5 {[%emt 0:03:10]} Bg7 {[%emt 0:01:15]} 4. e3 {[%emt 0:00:48]} d6 {[%emt 0:01:24]} 5. Be2 {[%emt 0:03:14]} O-O {[%emt 0:01:06]} 6. Nbd2 {[%emt 0:01:40]} Nbd7 {[%emt 0:01:57]} 7. O-O {[%emt 0:01:53]} b6 {[%emt 0:02:26]} 8. c3 {[%emt 0:03:10]} Bb7 {[%emt 0:01:21]} 9. Bd3 {[%emt 0:02:01]} h6 {[%emt 0:06:03]} 10. Bh4 {[%emt 0:01:23]} e5 {[%emt 0:05:21]} 11. e4 {[%emt 0:14:30]} Qe8 {[%emt 0:11:27]} 12. Re1 {[%emt 0:04:31]} Nh5 {[%emt 0:04:18]} 13. Qc2 {[%emt 0:20:44]} Nf4 {[%emt 0:06:35]} 14. Bc4 {[%emt 0:01:19]} g5 {[%emt 0:11:17]} 15. Bg3 {[%emt 0:00:36]} Qe7 {[%emt 0:03:22]} 16. Nf1 {[%emt 0:10:37]} Nf6 {[%emt 0:04:23]} 17. Bxf4 {[%emt 0:07:51]} gxf4 {[%emt 0:08:30]} 18. dxe5 {[%emt 0:21:33]} dxe5 {[%emt 0:01:29]} 19. N1d2 {[%emt 0:00:00]} Nd7 {[%emt 0:05:03]} 20. Rad1 {[%emt 0:00:00]} Rad8 {[%emt 0:01:22]} 21. b4 {[%emt 0:00:00]} a6 {[%emt 0:06:00]} 22. g3 {[%emt 0:00:00]} fxg3 {[%emt 0:01:14]} 23. hxg3 {[%emt 0:00:00]} c5 {[%emt 0:01:29]} 24. a3 {[%emt 0:00:00]} b5 {[%emt 0:02:07]} 25. Bf1 {[%emt 0:00:00]} Rc8 {[%emt 0:01:26]} 26. Qb3 {[%emt 0:00:00]} c4 {[%emt 0:02:08]} 27. Qc2 {[%emt 0:00:00]} a5 {[%emt 0:01:27]} 28. Nh4 {[%emt 0:00:00]} axb4 {[%emt 0:00:56]} 29. axb4 {[%emt 0:00:00]} Nf6 {[%emt 0:02:42]} 30. Nf5 {[%emt 0:01:20]} Qc7 {[%emt 0:01:25]} 31. Bg2 {[%emt 0:02:49]} Rcd8 {[%emt 0:01:28]} 32. Nf1 {[%emt 0:00:10]} Rxd1 {[%emt 0:01:45]} 33. Rxd1 {[%emt 0:00:08]} Rd8 {[%emt 0:00:26]} 34. f3 {[%emt 0:02:32]} Qb6+ {[%emt 0:01:28]} 35. Kh2 {[%emt 0:00:39]} Rxd1 {[%emt 0:00:21]} 36. Qxd1 {[%emt 0:00:01]} Bf8 {[%emt 0:00:51]} 37. N1e3 {[%emt 0:00:10]} Bc8 {[%emt 0:00:42]} 38. Qd2 {[%emt 0:00:23]} Bxf5 {[%emt 0:00:51]} 39. Nxf5 {[%emt 0:00:18]} Kh7 {[%emt 0:00:19]} 40. Bh3 {[%emt 0:01:10]} Qc7 {[%emt 0:01:02]} 41. Bg2 {[%emt 0:00:48]} Qd7 {[%emt 0:00:32]} 42. Qa2 {[%emt 0:01:32]} Qd3 {[%emt 0:00:54]} 43. Qa7 {[%emt 0:00:00]} Qd7 {[%emt 0:00:30]} 44. Qb8 {[%emt 0:00:16]} Qe8 {[%emt 0:00:43]} 45. Qb6 {[%emt 0:00:37]} Bg7 {[%emt 0:00:31]} 46. Bh3 {[%emt 0:00:35]} Qd7 {[%emt 0:00:32]} 47. Qf2 {[%emt 0:00:31]} Qd3 {[%emt 0:00:16]} 48. Bg2 {[%emt 0:00:26]} Qxc3 {[%emt 0:00:12]} 49. Qa7 {[%emt 0:00:13]} Kg8 {[%emt 0:00:49]} 50. Qb8+ {[%emt 0:00:20]} Kh7 {[%emt 0:00:16]} 51. Qxb5 {[%emt 0:00:37]} Qd3 {[%emt 0:00:27]} 52. Qb7 {[%emt 0:00:44]} Qd7 {[%emt 0:00:15]} 53. Qxd7 {[%emt 0:00:18]} Nxd7 {[%emt 0:00:06]} 54. Bf1 {[%emt 0:00:48]} c3 {[%emt 0:00:56]} 55. Bd3 {[%emt 0:00:33]} Bf8 {[%emt 0:00:09]} 56. b5 {[%emt 0:00:20]} Nc5 {[%emt 0:00:45]} 57. Bc2 {[%emt 0:00:05]} Nd7 {[%emt 0:00:34]} 58. Ne3 {[%emt 0:00:16]} Bc5 {[%emt 0:00:32]} 59. Nd5 {[%emt 0:00:06]} Bd4 {[%emt 0:00:26]} 60. f4 {[%emt 0:00:50]} exf4 {[%emt 0:00:19]} 61. gxf4 {[%emt 0:00:10]} f6 {[%emt 0:00:14]} 62. e5+ {[%emt 0:01:22]} Kg7 {[%emt 0:00:40]} 63. e6 {[%emt 0:00:19]} Nb6 {[%emt 0:01:31]} 64. e7 {[%emt 0:00:38]} Kf7 {[%emt 0:01:05]} 65. Bg6+ {[%emt 0:00:13]} Kxg6 {[%emt 0:00:00]} 66. e8=Q+ {[%emt 0:00:07]} Kf5 {[%emt 0:00:00]} 67. Nxb6 {[%emt 0:00:32]} Bxb6 {[%emt 0:00:00]} 68. Qd7+ {[%emt 0:00:21]} Kg6 {[%emt 0:00:48]} 69. Qd3+ {[%emt 0:00:10]} 1-0